bitfinex/quotes_BTCUSD_20251113
["timestamp","ask_amount","ask_price","bid_price","bid_amount"]
[1763062616618,0.00046517,98874.0,98870.0,0.20228498]
[1763062616819,0.09816915,98873.0,98865.0,0.13229605]
[1763062617017,0.09816915,98873.0,98869.0,0.20228597]
[1763062617212,0.09816915,98873.0,98868.0,0.20228831]
[1763062617575,0.09816915,98873.0,98864.0,0.20253033]
[1763062617795,0.09816915,98873.0,98864.0,0.00023393]
[1763062618199,0.06588,98865.0,98864.0,0.00023393]
[1763062618398,0.07014,98872.0,98864.0,0.00023393]
[1763062618687,0.06588,98865.0,98864.0,0.00023393]
[1763062619903,0.00046517,98874.0,98864.0,0.00023393]
[1763062620107,0.09816915,98873.0,98866.0,0.20229365]
[1763062620334,0.09816915,98873.0,98864.0,0.00123393]
[1763062620335,0.04435,98865.0,98864.0,0.00123393]
[1763062620514,0.04435,98865.0,98864.0,0.00023393]
[1763062620671,0.04435,98865.0,98864.0,0.00123393]
[1763062620879,0.09146,98872.0,98864.0,0.00123393]
[1763062621082,0.00046517,98874.0,98864.0,0.00123393]
[1763062621083,0.001,98865.0,98864.0,0.20253203]
[1763062621515,0.00046517,98874.0,98867.0,0.20229044]
[1763062621820,0.00046517,98874.0,98868.0,0.20228855]
[1763062622032,0.00046517,98874.0,98872.0,0.20228173]
[1763062622394,0.00046517,98874.0,98864.0,0.00023393]
[1763062622602,0.09194,98873.0,98864.0,0.00023393]
[1763062622813,0.04435,98865.0,98864.0,0.00023393]
[1763062624179,0.09816915,98872.0,98841.0,0.09398]
[1763062624384,0.09816915,98872.0,98850.0,0.59898737]
[1763062624538,0.00046517,98874.0,98873.0,0.20227969]
[1763062624724,0.00046517,98874.0,98873.0,0.26577969]
[1763062625166,0.04841,98905.0,98887.0,0.20225105]
[1763062625498,0.04537,98910.0,98887.0,0.20239059]
[1763062625697,0.00128274,98906.0,98887.0,0.20239059]
[1763062626897,0.00128274,98906.0,98887.0,0.30255974]
[1763062627339,0.00128274,98906.0,98887.0,0.20539059]
[1763062627471,0.00128274,98906.0,98887.0,0.20739059]
[1763062627670,0.00128274,98906.0,98887.0,0.30555974]
[1763062627847,0.00128274,98906.0,98887.0,0.30255974]
[1763062628056,0.00128274,98906.0,98887.0,0.30555974]
[1763062628290,0.00128274,98906.0,98887.0,0.20739059]
[1763062628495,0.00128274,98906.0,98887.0,0.30555974]
[1763062629885,0.00128274,98906.0,98900.0,0.323]
[1763062630087,0.04817,98952.0,98920.0,0.01010917]
[1763062630288,0.04817,98952.0,98942.0,0.20213684]
[1763062630495,0.04817,98952.0,98943.0,0.04251]
[1763062630692,0.04817,98952.0,98947.0,0.20212725]
[1763062630839,0.04817,98952.0,98949.0,0.20212399]
[1763062631247,0.04817,98952.0,98943.0,0.04251]
[1763062631248,0.00013961,98952.0,98943.0,0.04251]
[1763062631562,0.0012205,98944.0,98943.0,0.04251]
[1763062632123,0.0012205,98944.0,98935.0,0.04251]
[1763062632248,0.0012205,98944.0,98930.0,0.01010815]
[1763062632249,0.00113961,98952.0,98925.0,0.20217247]
[1763062632449,0.00113961,98952.0,98920.0,0.01010917]
[1763062632450,0.09816915,98948.0,98934.0,0.20215408]
[1763062632674,0.09816915,98948.0,98936.0,0.20214889]
[1763062632893,0.09152,98951.0,98925.0,0.0996]
[1763062633237,0.09816915,98949.0,98943.0,0.001]
[1763062633348,0.09816915,98949.0,98924.0,0.04251]
[1763062633565,0.09816915,98949.0,98921.0,0.2021805]
[1763062633566,0.09152,98948.0,98921.0,0.2021805]
[1763062633766,0.09252,98948.0,98924.0,0.202175]
[1763062633966,0.0158583,98947.0,98911.0,0.0996]
[1763062634435,0.09152,98946.0,98911.0,0.0996]
[1763062634787,0.09152,98946.0,98931.0,0.20215967]
[1763062635014,0.09152,98946.0,98911.0,0.19776915]
[1763062635176,0.09152,98946.0,98924.0,0.20217421]
[1763062635381,0.09152,98946.0,98911.0,0.19776915]
[1763062635570,0.09152,98946.0,98918.0,0.20218684]
[1763062635776,0.09816915,98934.0,98919.0,0.20218474]
[1763062636105,0.09252,98946.0,98933.0,0.20215651]
[1763062636309,0.04785,98937.0,98923.0,0.20217656]
[1763062636508,0.04785,98937.0,98913.0,0.20219789]
[1763062636731,0.04785,98937.0,98912.0,0.0996]
[1763062637142,0.04785,98937.0,98932.0,0.20215828]
[1763062637341,0.04785,98937.0,98931.0,0.20215955]
[1763062637543,0.04785,98937.0,98930.0,0.20216272]
[1763062637947,0.01800953,98952.0,98932.0,0.20215796]
[1763062638271,0.01585776,98951.0,98930.0,0.20216278]
[1763062638414,0.01585776,98951.0,98937.0,0.20214868]
[1763062638618,0.01585776,98951.0,98930.0,0.001]
[1763062638889,0.01585776,98951.0,98943.0,0.20213515]
[1763062639034,0.01585776,98951.0,98930.0,0.001]
[1763062639232,0.01585776,98951.0,98939.0,0.20214275]
[1763062639544,0.01585776,98951.0,98943.0,0.20213535]
[1763062639749,0.01585776,98951.0,98944.0,0.20213366]
[1763062639954,0.01685776,98951.0,98945.0,0.20213199]
[1763062640231,0.01685776,98951.0,98930.0,0.20216191]
[1763062640435,0.04816,98950.0,98924.0,0.20217522]
[1763062640643,0.04816,98950.0,98920.0,0.01010917]
[1763062640644,0.06816,98950.0,98920.0,0.01010917]
[1763062640843,0.00182,98921.0,98914.0,0.20219429]
[1763062641049,0.00182,98921.0,98910.0,0.0101102]
[1763062641183,0.04681,98926.0,98910.0,0.0101102]
[1763062641389,0.04681,98926.0,98905.0,0.03239]
[1763062641390,0.02408,98911.0,98907.0,0.2022098]
[1763062641619,0.02408,98911.0,98896.0,0.03239]
[1763062641917,0.07358,98911.0,98896.0,0.00013961]
[1763062642117,0.00049,98897.0,98896.0,0.00013961]
[1763062642439,0.09816915,98907.0,98896.0,0.00013961]
[1763062642788,0.09816915,98907.0,98896.0,0.00213961]
[1763062643174,0.02408,98911.0,98905.0,0.20221242]
[1763062643384,0.04341874,98940.0,98907.0,0.002]
[1763062643385,0.07334,98931.0,98907.0,0.002]
[1763062643561,0.07334,98931.0,98917.0,0.20218797]
[1763062643971,0.07334,98931.0,98908.0,0.04667]
[1763062644179,0.07334,98931.0,98908.0,0.04567]
[1763062644421,0.07334,98931.0,98908.0,0.24787708]
[1763062644626,0.07334,98931.0,98908.0,0.04567]
[1763062644810,0.01585996,98936.0,98906.0,0.00128238]
[1763062644811,0.001,98907.0,98906.0,0.00128238]
[1763062645016,0.05001,98907.0,98906.0,0.00128238]
[1763062645212,0.04901,98907.0,98906.0,0.00128238]
[1763062645560,0.04901,98907.0,98893.0,0.04667]
[1763062645762,0.04901,98907.0,98884.0,0.0996]
[1763062645763,0.00098,98894.0,98870.0,0.01011429]
[1763062646001,0.14669915,98906.0,98887.0,0.20225079]
[1763062646002,0.00049,98893.0,98887.0,0.20225079]
[1763062646203,0.14669915,98906.0,98871.0,0.0996]
[1763062646204,0.04902,98905.0,98871.0,0.0996]
[1763062646406,0.04902,98905.0,98880.0,0.04667]
[1763062646618,0.09816915,98891.0,98870.0,0.00013954]
[1763062647002,0.95132579,98890.0,98870.0,0.00013954]
[1763062647212,0.07334,98890.0,98870.0,0.00013954]
[1763062647400,0.02457,98871.0,98870.0,0.00013954]
[1763062648901,0.07351303,98871.0,98870.0,0.00113954]
[1763062649256,0.07351303,98871.0,98870.0,0.00013954]
[1763062649494,0.07451303,98871.0,98870.0,0.00113954]
[1763062649943,0.07351303,98871.0,98870.0,0.00013954]
[1763062650062,0.07451303,98871.0,98870.0,0.00013954]
[1763062650375,0.07551303,98871.0,98870.0,0.00013954]
[1763062651229,0.07451303,98871.0,98870.0,0.00013954]
[1763062651585,0.07551303,98871.0,98870.0,0.00013954]
[1763062651797,0.07451303,98871.0,98870.0,0.00013954]
[1763062652419,0.07351303,98871.0,98870.0,0.00013954]
[1763062652594,0.07451303,98871.0,98870.0,0.00013954]
[1763062652797,0.07451303,98871.0,98870.0,0.00107506]
[1763062653028,0.07351303,98871.0,98870.0,0.00107506]
[1763062653398,0.07351303,98871.0,98839.0,0.03889242]
[1763062653601,0.35122,98870.0,98839.0,0.03889242]
[1763062653809,0.03106,98840.0,98830.0,0.0004]
[1763062654214,0.02808,98831.0,98830.0,0.0004]
[1763062655114,0.0282193,98831.0,98830.0,0.0024]
[1763062655371,0.0001393,98831.0,98830.0,0.2047677]
[1763062655601,0.0001393,98831.0,98830.0,0.0024]
[1763062655825,0.0001393,98831.0,98830.0,0.0004]
[1763062656166,0.0001393,98831.0,98830.0,0.2037677]
[1763062656375,0.0001393,98831.0,98830.0,0.2057677]
[1763062656813,0.0001393,98831.0,98830.0,0.2037677]
[1763062657244,0.0001393,98831.0,98830.0,0.0024]
[1763062657759,0.0001393,98831.0,98830.0,0.0044]
[1763062657992,0.0001393,98831.0,98830.0,0.0024]
[1763062658422,0.0001393,98831.0,98830.0,0.0014]
[1763062658650,2.089e-05,98831.0,98830.0,0.06525]
[1763062658862,0.03138044,98846.0,98835.0,0.20235623]
[1763062659089,0.03138044,98846.0,98835.0,0.20282099]
[1763062659281,0.03138044,98846.0,98841.0,0.20234431]
[1763062659434,0.03138044,98846.0,98837.0,0.20235218]
[1763062659633,0.03138044,98846.0,98845.0,0.00064995]
[1763062660248,0.03187044,98846.0,98845.0,0.00064995]
[1763062660447,0.03138044,98846.0,98845.0,0.00064995]
[1763062660665,0.03671044,98846.0,98832.0,0.04181512]
[1763062660889,0.04105,98833.0,98830.0,0.21526663]
[1763062661088,0.00046574,98846.0,98845.0,0.0467]
[1763062661264,0.00046574,98846.0,98845.0,0.10955]
[1763062661687,0.00046574,98846.0,98845.0,0.20715]
[1763062661871,0.00046574,98846.0,98845.0,0.11055]
[1763062662744,0.00046574,98846.0,98845.0,0.001]
[1763062663790,0.00046574,98846.0,98845.0,0.002]
[1763062666291,0.04752574,98846.0,98845.0,0.002]
[1763062667553,0.04752574,98846.0,98832.0,0.00033806]
[1763062667735,0.09816915,98845.0,98831.0,0.20236396]
[1763062667935,0.09816915,98845.0,98821.0,0.09816915]
[1763062668133,0.09816915,98845.0,98834.0,0.20235831]
[1763062668417,0.00046574,98846.0,98844.0,0.2023376]
[1763062668702,0.00046574,98846.0,98836.0,0.202355]
[1763062668898,0.00046574,98846.0,98839.0,0.2023487]
[1763062669126,0.00046574,98846.0,98821.0,0.09816915]
[1763062669661,0.00046574,98846.0,98844.0,0.001]
[1763062670020,0.00046574,98846.0,98844.0,0.20333759]
[1763062670834,0.00046574,98846.0,98835.0,0.0966]
[1763062671064,0.00046574,98846.0,98845.0,0.06285]
[1763062671490,0.00046574,98846.0,98842.0,0.20234276]
[1763062671696,0.00046574,98846.0,98844.0,0.001]
[1763062671897,6.986e-05,98846.0,98844.0,0.002]
[1763062672094,0.00055,98845.0,98844.0,0.002]
[1763062672256,0.00055,98845.0,98844.0,0.001]
[1763062672866,0.00055,98845.0,98842.0,0.001]
[1763062673116,0.01586851,98858.0,98845.0,0.001]
[1763062673311,0.09816915,98846.0,98845.0,0.001]
[1763062673509,0.09816915,98846.0,98842.0,0.001]
[1763062673711,0.05474,98843.0,98829.0,0.20236858]
[1763062673920,0.05474,98843.0,98823.0,0.00023407]
[1763062674095,0.05474,98843.0,98839.0,0.20234844]
[1763062674310,0.09816915,98846.0,98824.0,0.0966]
[1763062674311,0.09816915,98846.0,98845.0,0.001]
[1763062674520,0.11708634,98846.0,98845.0,0.001]
[1763062674729,0.11708634,98846.0,98839.0,0.16234883]
[1763062674950,0.01891719,98845.0,98824.0,0.0966]
[1763062675175,0.01891718,98844.0,98839.0,0.20234848]
[1763062675400,0.01893738,98843.0,98835.0,0.20235736]
[1763062675624,0.01893738,98842.0,98836.0,0.20235434]
[1763062675851,0.01893738,98841.0,98824.0,0.0966]
[1763062676067,0.01893738,98840.0,98838.0,0.20235086]
[1763062676272,0.01895799,98839.0,98830.0,0.88810417]
[1763062676493,0.01895799,98838.0,98836.0,0.20235363]
[1763062676693,0.00013964,98839.0,98838.0,0.20235132]
[1763062676918,0.01909679,98839.0,98838.0,0.20235132]
[1763062677088,0.01909679,98839.0,98838.0,0.20335132]
[1763062677460,0.01909679,98839.0,98838.0,0.20235132]
[1763062677847,0.01909679,98839.0,98838.0,0.001]
[1763062678045,0.01909679,98839.0,98838.0,0.002]
[1763062679032,0.01909679,98839.0,98838.0,0.0986]
[1763062679474,0.01909679,98839.0,98838.0,0.002]
[1763062680489,0.07383679,98839.0,98838.0,0.002]
[1763062681327,0.01909679,98839.0,98838.0,0.002]
[1763062682136,0.01909679,98839.0,98824.0,0.20237992]
[1763062682342,0.01895715,98838.0,98824.0,0.20237992]
[1763062682461,0.01895715,98837.0,98825.0,0.20237765]
[1763062682672,0.01895715,98836.0,98827.0,0.20237377]
[1763062682886,0.01895715,98835.0,98822.0,0.20238282]
[1763062683181,0.01895715,98834.0,98820.0,0.20278805]
[1763062683382,0.01895715,98833.0,98824.0,0.002]
[1763062683677,0.03508,98838.0,98824.0,0.002]
[1763062683678,0.01895715,98832.0,98824.0,0.002]
[1763062683915,0.01895715,98832.0,98823.0,0.00023407]
[1763062683916,0.02,98830.0,98823.0,0.00023407]
[1763062684157,0.01895715,98829.0,98823.0,0.00123407]
[1763062684393,0.01895715,98828.0,98823.0,0.00223407]
[1763062684597,0.01898067,98827.0,98823.0,0.00223407]
[1763062684830,0.01898067,98826.0,98823.0,0.00123407]
[1763062685047,0.01898067,98825.0,98823.0,0.00123407]
[1763062685297,0.09816915,98831.0,98823.0,0.00023407]
[1763062685298,0.01898067,98824.0,98823.0,0.00023407]
[1763062686861,0.07487067,98824.0,98823.0,0.00023407]
[1763062687312,0.07487067,98824.0,98823.0,0.01273476]
[1763062689762,0.09570389,98824.0,98823.0,0.01273476]
[1763062690168,0.07587067,98824.0,98823.0,0.01273476]
[1763062690401,0.46411265,98824.0,98823.0,0.01273476]
[1763062690650,0.36641874,98816.0,98810.0,0.0004]
[1763062690866,0.36641874,98816.0,98752.0,0.04964]
[1763062690867,0.23262,98800.0,98770.0,0.0004]
[1763062691080,0.03508,98781.0,98770.0,0.0004]
[1763062691297,0.42656067,98781.0,98770.0,0.0004]
[1763062691735,0.42656067,98781.0,98780.0,0.00151892]
[1763062692156,0.42656067,98781.0,98780.0,0.00198466]
[1763062692400,0.42756067,98781.0,98780.0,0.00198466]
[1763062693057,0.42856067,98781.0,98780.0,0.00198466]
[1763062694375,0.42856067,98781.0,98750.0,0.21265651]
[1763062694376,0.323,98780.0,98750.0,0.01012658]
[1763062694588,0.09816915,98763.0,98755.0,0.20252129]
[1763062694803,0.09816915,98763.0,98750.0,0.01012658]
[1763062695022,0.03508,98762.0,98750.0,0.01012658]
[1763062695236,0.02426,98751.0,98740.0,0.0004]
[1763062695662,0.02426,98751.0,98749.0,0.20253168]
[1763062695869,0.02426,98751.0,98740.0,0.0004]
[1763062695870,0.09816915,98748.0,98740.0,0.0004]
[1763062697169,0.09863403,98748.0,98740.0,0.0004]
[1763062698066,0.34182456,98747.0,98740.0,0.0004]
[1763062698273,0.323,98747.0,98740.0,0.0004]
[1763062698720,0.01880683,98746.0,98740.0,0.0004]
[1763062698928,0.01880683,98745.0,98740.0,0.0004]
[1763062699136,0.323,98747.0,98740.0,0.0004]
[1763062699137,0.01880683,98744.0,98740.0,0.0004]
[1763062699354,0.01880683,98743.0,98740.0,0.0004]
[1763062699568,0.01588821,98746.0,98740.0,0.0004]
[1763062699981,0.01788821,98746.0,98740.0,0.0004]
[1763062700204,0.01788821,98746.0,98744.0,0.20254248]
[1763062700688,0.01788821,98746.0,98741.0,0.09483]
[1763062700893,0.002,98746.0,98740.0,0.0004]
[1763062701330,0.002,98743.0,98740.0,0.0004]
[1763062701532,0.004,98743.0,98727.0,0.20257715]
[1763062701750,0.09816915,98745.0,98722.0,0.20258908]
[1763062702163,0.00046488,98748.0,98726.0,0.20257958]
[1763062702164,0.14766915,98744.0,98726.0,0.20257958]
[1763062702371,0.14766915,98744.0,98721.0,0.0001]
[1763062702793,0.14766915,98744.0,98734.0,0.20256361]
[1763062703001,0.00046488,98748.0,98744.0,0.20254294]
[1763062703215,0.00046488,98748.0,98747.0,0.20253779]
[1763062703440,0.00046488,98748.0,98747.0,0.26858779]
[1763062704077,0.00046488,98748.0,98747.0,0.20253779]
[1763062704930,0.00046488,98748.0,98747.0,0.29736779]
[1763062705135,0.00146488,98748.0,98747.0,0.001]
[1763062705785,0.00046488,98748.0,98745.0,0.00091126]
[1763062706006,0.00146488,98748.0,98747.0,0.001]
[1763062707082,0.00146488,98748.0,98731.0,0.20257024]
[1763062707083,0.00046488,98748.0,98731.0,0.20257024]
[1763062707286,0.00046488,98748.0,98720.0,0.86343157]
[1763062707580,0.00046488,98748.0,98747.0,0.002]
[1763062707991,0.04996488,98748.0,98731.0,0.04964]
[1763062708224,0.00046488,98748.0,98731.0,0.20256985]
[1763062708439,0.09816915,98738.0,98726.0,0.04964]
[1763062708645,0.09816915,98738.0,98725.0,0.04964]
[1763062708869,0.09816915,98738.0,98729.0,0.2025747]
[1763062709047,0.09816915,98738.0,98730.0,0.20257155]
[1763062709271,0.09816915,98738.0,98731.0,0.20256868]
[1763062709494,0.09816915,98738.0,98730.0,0.20257262]
[1763062709710,0.09816915,98738.0,98725.0,0.04964]
[1763062709911,0.08196488,98748.0,98731.0,0.20256965]
[1763062710126,0.09816915,98739.0,98725.0,0.04964]
[1763062710332,0.09816915,98739.0,98734.0,0.20256318]
[1763062710545,0.09816915,98739.0,98729.0,0.60107284]
[1763062710751,0.09816915,98739.0,98725.0,0.05064]
[1763062710958,0.09816915,98739.0,98725.0,0.04964]
[1763062711181,0.14641915,98739.0,98721.0,0.0001]
[1763062711438,0.04825,98738.0,98725.0,0.001]
[1763062711868,0.03399,98726.0,98725.0,0.001]
[1763062712070,0.04825,98738.0,98721.0,0.0001]
[1763062712277,0.09816915,98739.0,98725.0,0.20258232]
[1763062712483,0.09816915,98739.0,98726.0,0.04664]
[1763062713132,0.09816915,98739.0,98729.0,0.20257331]
[1763062713335,0.09816915,98739.0,98728.0,0.20257677]
[1763062713544,0.09816915,98739.0,98735.0,0.20256176]
[1763062713753,0.09816915,98739.0,98737.0,0.20255757]
[1763062713967,0.09816915,98739.0,98727.0,0.20257882]
[1763062714175,0.09816915,98739.0,98726.0,0.001]
[1763062714396,0.09816915,98739.0,98736.0,0.20256029]
[1763062714608,0.09816915,98739.0,98725.0,0.20257882]
[1763062714813,0.00046488,98748.0,98747.0,0.20253779]
[1763062715854,0.00046488,98748.0,98742.0,0.04664]
[1763062716062,0.00046488,98748.0,98747.0,0.06533]
[1763062716266,0.00046488,98748.0,98746.0,0.20253784]
[1763062716493,0.00046488,98748.0,98746.0,0.30070699]
[1763062716703,0.00046488,98748.0,98747.0,0.09308]
[1763062718678,0.00046488,98748.0,98747.0,0.09408]
[1763062719640,0.00046488,98748.0,98747.0,0.09608]
[1763062721432,0.00046488,98748.0,98747.0,0.09308]
[1763062721638,0.00046488,98748.0,98747.0,0.09408]
[1763062722706,0.00046488,98748.0,98747.0,0.01350069]
[1763062723349,0.00046488,98748.0,98747.0,0.01550069]
[1763062723558,0.01988978,98748.0,98747.0,0.01450069]
[1763062723765,0.01988978,98748.0,98720.0,0.70428249]
[1763062723956,0.00094488,98748.0,98747.0,0.001]
[1763062724245,0.01989077,98748.0,98747.0,0.002]
[1763062724432,0.01989077,98748.0,98747.0,0.00385917]
[1763062724682,0.01989077,98748.0,98747.0,0.00085917]
[1763062725095,0.01989077,98748.0,98747.0,0.00185917]
[1763062727539,0.03577909,98748.0,98747.0,1e-08]
[1763062729153,0.05761237,98748.0,98721.0,0.0001]
[1763062729380,0.09816915,98736.0,98721.0,0.0001]
[1763062729557,0.01894589,98735.0,98726.0,0.20258022]
[1763062729757,0.01894589,98734.0,98726.0,0.20257989]
[1763062729959,0.39898,98747.0,98731.0,0.2025692]
[1763062729960,0.01894589,98733.0,98731.0,0.2025692]
[1763062730160,0.01775357,98732.0,98731.0,0.2678992]
[1763062730583,0.00246488,98748.0,98747.0,0.20253779]
[1763062730787,0.00046488,98748.0,98747.0,0.17553779]
[1763062732176,0.00046488,98748.0,98746.0,0.20253806]
[1763062732308,0.00046488,98748.0,98747.0,0.11197]
[1763062732511,0.00046488,98748.0,98747.0,0.31450779]
[1763062732710,0.00146488,98748.0,98747.0,0.31450779]
[1763062733096,0.00046488,98748.0,98747.0,0.04664]
[1763062733301,0.00046488,98748.0,98742.0,0.20254614]
[1763062733501,0.00046488,98748.0,98743.0,0.04664]
[1763062733939,0.00046488,98748.0,98738.0,0.60107284]
[1763062734152,0.00046488,98748.0,98741.0,0.202549]
[1763062734361,0.00046488,98748.0,98737.0,0.04664]
[1763062734582,0.00046488,98748.0,98739.0,0.20255338]
[1763062734791,0.00046488,98748.0,98737.0,0.04664]
[1763062735200,0.00019652,98748.0,98737.0,0.04664]
[1763062735420,0.00019652,98748.0,98728.0,0.20257575]
[1763062735644,0.17213915,98747.0,98732.0,0.00039066]
[1763062735848,0.17213915,98747.0,98727.0,0.20257791]
[1763062736059,0.07397,98746.0,98724.0,0.20258416]
[1763062736263,0.07397,98746.0,98721.0,0.0001]
[1763062736600,0.07397,98746.0,98722.0,0.20258799]
[1763062736800,0.07397,98746.0,98721.0,0.0001]
[1763062737015,0.07397,98746.0,98721.0,0.09318]
[1763062737221,0.07397,98746.0,98730.0,0.202571]
[1763062737427,0.07497,98746.0,98721.0,0.09318]
[1763062737631,0.07497,98746.0,98723.0,0.20258703]
[1763062737833,0.39797,98746.0,98728.0,0.2025763]
[1763062738093,0.09816915,98745.0,98728.0,0.2025763]
[1763062738298,0.09816915,98745.0,98732.0,0.20256779]
[1763062738982,0.04073,98733.0,98721.0,0.0001]
[1763062739709,0.04073,98733.0,98725.0,0.20258219]
[1763062739927,0.04073,98733.0,98723.0,0.20258668]
[1763062739928,0.04073,98733.0,98727.0,0.20257838]
[1763062740140,0.04073,98733.0,98726.0,0.20257922]
[1763062740141,0.04073,98733.0,98728.0,0.20257624]
[1763062740346,0.04073,98741.0,98730.0,0.20257114]
[1763062740569,0.04073,98741.0,98721.0,0.0001]
[1763062740811,0.04073,98741.0,98731.0,0.20256931]
[1763062741054,0.32319652,98748.0,98746.0,0.20253899]
[1763062741281,0.00019652,98748.0,98747.0,0.05509]
[1763062741922,0.00019652,98748.0,98747.0,0.14881]
[1763062742564,0.00019652,98748.0,98747.0,0.05509]
[1763062742999,0.00019652,98748.0,98747.0,0.09816915]
[1763062743707,0.00019652,98748.0,98747.0,0.14158789]
[1763062743943,1e-08,98748.0,98747.0,0.46458789]
[1763062744155,0.2,98820.0,98747.0,0.46458789]
[1763062744156,0.03467,98811.0,98761.0,0.04341874]
[1763062744371,0.09816915,98808.0,98786.0,0.04673]
[1763062744798,0.09816915,98808.0,98786.0,0.10646]
[1763062745016,0.09816915,98808.0,98786.0,0.05646]
[1763062745661,0.09816915,98808.0,98786.0,0.05846]
[1763062745873,0.04827,98799.0,98786.0,0.05846]
[1763062746087,0.04827,98799.0,98786.0,0.05946]
[1763062746323,0.04827,98799.0,98786.0,0.003]
[1763062746533,0.01588094,98804.0,98786.0,0.40292698]
[1763062746738,0.09816915,98810.0,98786.0,0.40292698]
[1763062747171,0.04073,98821.0,98786.0,0.30362698]
[1763062747415,0.04073,98821.0,98786.0,0.34704572]
[1763062747625,0.04073,98821.0,98786.0,0.66804572]
[1763062747842,0.04611,98816.0,98786.0,0.66904572]
[1763062748335,0.04611,98816.0,98786.0,0.66804572]
[1763062748542,0.04073,98821.0,98786.0,0.66704572]
[1763062748754,0.323,98828.0,98786.0,0.66904572]
[1763062748963,0.04611,98814.0,98786.0,0.66904572]
[1763062749169,0.323,98828.0,98786.0,0.66904572]
[1763062749372,0.09816915,98827.0,98786.0,0.66904572]
[1763062750439,0.05706816,98830.0,98825.0,0.20237772]
[1763062750440,0.01587816,98830.0,98825.0,0.20237772]
[1763062750656,0.01587816,98830.0,98800.0,0.61119429]
[1763062750657,0.01587816,98830.0,98807.0,0.20241466]
[1763062750891,0.00101446,98826.0,98810.0,0.60107284]
[1763062751093,0.00101446,98826.0,98815.0,0.20239646]
[1763062751303,0.01587816,98830.0,98811.0,0.0993]
[1763062751720,0.00065039,98812.0,98811.0,0.0994393]
[1763062752145,0.00065039,98812.0,98811.0,0.02943929]
[1763062752364,0.00065039,98812.0,98811.0,0.0001393]
[1763062752600,0.00065039,98812.0,98811.0,0.04355804]
[1763062752822,0.00065039,98812.0,98811.0,0.36655804]
[1763062753044,0.00065039,98812.0,98811.0,0.52654591]
[1763062753260,0.04611,98854.0,98833.0,0.20236015]
[1763062753477,0.04611,98854.0,98825.0,0.09816915]
[1763062753695,0.04611,98854.0,98832.0,0.20236292]
[1763062753906,0.04611,98854.0,98831.0,0.20236565]
[1763062754113,0.04611,98854.0,98840.0,0.2023456]
[1763062754322,0.02,98880.0,98843.0,0.20234101]
[1763062754538,0.09816915,98856.0,98831.0,0.0993]
[1763062754770,0.002,98854.0,98831.0,0.0993]
[1763062755218,0.002,98854.0,98826.0,0.0483]
[1763062755613,0.002,98854.0,98801.0,0.09816915]
[1763062755614,0.00025,98827.0,98801.0,0.09816915]
[1763062755807,0.00025,98827.0,98805.0,0.04318]
[1763062755808,0.13356915,98826.0,98805.0,0.04318]
[1763062756053,0.13427915,98826.0,98805.0,0.04318]
[1763062756447,0.13427915,98826.0,98799.0,0.20243086]
[1763062756448,0.036,98825.0,98790.0,0.89036424]
[1763062756624,0.036,98825.0,98791.0,0.0993]
[1763062756827,0.036,98825.0,98802.0,0.20242476]
[1763062757028,0.036,98825.0,98791.0,0.0993]
[1763062757391,0.036,98825.0,98795.0,0.20243789]
[1763062757603,0.036,98825.0,98796.0,0.20243645]
[1763062757827,0.361,98825.0,98791.0,0.0993]
[1763062758049,0.361,98825.0,98783.0,0.0993]
[1763062758252,0.036,98824.0,98790.0,0.20244947]
[1763062758465,0.036,98824.0,98790.0,0.20244759]
[1763062758664,0.036,98824.0,98783.0,0.07544726]
[1763062758665,0.036,98824.0,98799.0,0.20243026]
[1763062759087,0.036,98824.0,98807.0,0.20241473]
[1763062759292,0.036,98824.0,98807.0,0.17060473]
[1763062759477,0.036,98824.0,98807.0,0.0433293]
[1763062759890,0.038,98824.0,98807.0,0.0433293]
[1763062760100,0.004,98824.0,98807.0,0.0433293]
[1763062760655,0.002,98824.0,98807.0,0.0433293]
[1763062761181,0.002,98824.0,98808.0,0.0993]
[1763062761377,0.09816915,98823.0,98808.0,0.0993]
[1763062761735,0.09816915,98823.0,98807.0,0.0433293]
[1763062761947,0.003,98824.0,98812.0,0.20240392]
[1763062762158,0.002,98824.0,98815.0,0.20239673]
[1763062762417,0.002,98824.0,98823.0,0.04837]
[1763062762620,0.003,98824.0,98823.0,0.04837]
[1763062762831,0.0354,98832.0,98823.0,0.04837]
[1763062763040,0.001,98824.0,98823.0,0.04837]
[1763062763250,0.003,98824.0,98823.0,0.04837]
[1763062763712,0.001,98824.0,98813.0,0.0993]
[1763062763885,0.002,98824.0,98813.0,0.30170234]
[1763062764088,0.001,98824.0,98823.0,0.04825]
[1763062764294,0.001,98824.0,98823.0,0.09659]
[1763062764468,0.001,98824.0,98823.0,0.04825]
[1763062764675,0.0354,98837.0,98823.0,0.04825]
[1763062765084,0.001,98824.0,98823.0,0.04825]
[1763062765288,0.0354,98837.0,98817.0,0.04837]
[1763062765704,0.001,98824.0,98817.0,0.04837]
[1763062765927,0.002,98824.0,98817.0,0.04837]
[1763062766064,0.002,98824.0,98805.0,0.30171811]
[1763062766298,0.001,98824.0,98805.0,0.0993]
[1763062766490,0.001,98824.0,98804.0,0.20242056]
[1763062766691,0.001,98824.0,98809.0,0.20240891]
[1763062767158,0.04276,98823.0,98810.0,0.04827]
[1763062767362,0.0354,98837.0,98810.0,0.04827]
[1763062767363,0.00078,98836.0,98813.0,0.20240111]
[1763062767567,0.001,98824.0,98811.0,0.09886]
[1763062767775,0.001,98824.0,98813.0,0.20240235]
[1763062767981,0.002,98824.0,98812.0,0.20240456]
[1763062768197,0.002,98824.0,98813.0,0.20240181]
[1763062768398,0.001,98824.0,98815.0,0.20239824]
[1763062768606,0.001,98824.0,98810.0,0.04827]
[1763062768865,0.03565,98811.0,98801.0,0.04837]
[1763062769081,0.03578954,98811.0,98794.0,0.323]
[1763062769288,0.03578954,98811.0,98798.0,0.323]
[1763062769497,0.03578954,98811.0,98798.0,0.52543215]
[1763062769705,0.03578954,98811.0,98791.0,0.4223]
[1763062769919,0.00013954,98811.0,98804.0,0.20242069]
[1763062770139,0.00013954,98811.0,98802.0,0.20242338]
[1763062770351,0.00013954,98811.0,98791.0,0.323]
[1763062771190,0.00013954,98811.0,98793.0,0.20244301]
[1763062771421,0.00013954,98811.0,98804.0,0.20241993]
[1763062771630,0.00013954,98811.0,98801.0,0.20242646]
[1763062771844,0.00013954,98811.0,98801.0,0.01533]